fUST/lending_fUST_20250927
["ID","MTS","AMOUNT","RATE_DAILY","PERIOD"]
[387860698,1758931858380,-10430.65,0.00047123,120]
[387860700,1758931858389,-324.66751212,0.00047123,120]
[387860702,1758931858398,-480.0,0.00047123,120]
[387860704,1758931858409,-2702.06,0.00047123,120]
[387860706,1758931858422,-480.0,0.00047123,120]
[387860708,1758931858432,-480.0,0.00047123,120]
[387860710,1758931858443,-480.0,0.00047123,120]
[387860712,1758931858452,-480.0,0.00047123,120]
[387860714,1758931858462,-480.0,0.00047123,120]
[387860716,1758931858471,-480.0,0.00047123,120]
[387860718,1758931858482,-480.0,0.00047123,120]
[387860720,1758931858492,-2055.04,0.00047123,120]
[387860722,1758931858502,-3405.64,0.00047123,120]
[387860724,1758931858511,-480.0,0.00047123,120]
[387860727,1758931858521,-524.82,0.00047123,120]
[387860729,1758931858531,-755.1,0.00047123,120]
[387860731,1758931858540,-642.28,0.00047123,120]
[387860733,1758931858549,-4483.5,0.00047123,120]
[387860734,1758931858558,-772.16,0.00047123,30]
[387860736,1758931858568,-480.0,0.00047123,120]
[387860739,1758931858578,-760.25,0.00047123,120]
[387860741,1758931858588,-2365.79,0.00047123,120]
[387860743,1758931858597,-480.0,0.00047123,120]
[387860744,1758931858606,-811.62,0.00047123,120]
[387860747,1758931858616,-576.88,0.00047123,120]
[387860749,1758931858625,-679.43,0.00047123,120]
[387860750,1758931858634,-480.0,0.00047123,120]
[387860752,1758931858644,-811.86,0.00047123,120]
[387860753,1758931858654,-480.0,0.00047123,120]
[387860754,1758931858664,-3497.99,0.00047123,120]
[387860755,1758931858673,-546.05,0.00047123,120]
[387860756,1758931858683,-480.0,0.00047123,120]
[387860757,1758931858693,-480.0,0.00047123,120]
[387860758,1758931858703,-480.0,0.00047123,120]
[387860759,1758931858713,-480.0,0.00047123,120]
[387860760,1758931858723,-480.0,0.00047123,120]
[387860761,1758931858733,-2492.31,0.00047123,120]
[387860762,1758931858742,-480.0,0.00047123,120]
[387860763,1758931858752,-981.92,0.00047123,120]
[387860764,1758931858761,-858.58,0.00047123,120]
[387860765,1758931858771,-480.0,0.00047123,120]
[387860766,1758931858780,-480.0,0.00047123,120]
[387860767,1758931858790,-536.78,0.00047123,120]
[387860768,1758931858799,-1743.2,0.00047123,120]
[387860770,1758931858808,-480.0,0.00047123,120]
[387860771,1758931858817,-480.0,0.00047123,120]
[387860773,1758931858827,-4717.61,0.00047123,120]
[387860775,1758931858836,-480.0,0.00047123,120]
[387860777,1758931858846,-480.0,0.00047123,120]
[387860779,1758931858855,-480.0,0.00047123,120]
[387860781,1758931858866,-853.28,0.00047123,120]
[387860783,1758931858875,-480.0,0.00047123,120]
[387860785,1758931858885,-767.4,0.00047123,120]
[387860787,1758931858894,-842.14,0.00047123,120]
[387860789,1758931858904,-2623.9,0.00047123,30]
[387860791,1758931858913,-1203.55,0.00047123,120]
[387860793,1758931858923,-18460.88,0.00047123,120]
[387860795,1758931858933,-1092.42,0.00047123,120]
[387860797,1758931858942,-596.68,0.00047123,120]
[387860799,1758931858952,-5129.78,0.00047123,120]
[387860801,1758931858961,-869.5,0.00047123,120]
[387860803,1758931858971,-557.48,0.00047123,120]
[387860805,1758931858980,-750.93,0.00047123,120]
[387860807,1758931858990,-480.0,0.00047123,120]
[387860809,1758931859000,-480.0,0.00047123,120]
[387860811,1758931859009,-1759.3,0.00047123,120]
[387860813,1758931859018,-503.94,0.00047123,120]
[387860815,1758931859028,-942.05,0.00047123,120]
[387860817,1758931859037,-9594.99,0.00047123,120]
[387860819,1758931859047,-1400.99,0.00047123,120]
[387860821,1758931859056,-480.0,0.00047123,120]
[387860823,1758931859065,-988.16,0.00047123,120]
[387860825,1758931859074,-1293.22,0.00047123,120]
[387860828,1758931859084,-480.0,0.00047123,120]
[387860829,1758931859093,-490.87505913,0.00047123,120]
[387860831,1758931859103,-512.41,0.00047123,120]
[387860834,1758931859112,-1484.46,0.00047123,120]
[387860836,1758931859122,-480.0,0.00047123,120]
[387860838,1758931859131,-1648.98,0.00047123,120]
[387860840,1758931859140,-480.0,0.00047123,120]
[387860841,1758931859150,-1870.12,0.00047123,120]
[387860843,1758931859159,-480.0,0.00047123,120]
[387860845,1758931859168,-1799.49,0.00047123,120]
[387860846,1758931859178,-480.0,0.00047123,120]
[387860848,1758931859187,-490.58239712,0.00047123,120]
[387860850,1758931859197,-2180.83,0.00047123,21]
[387860852,1758931859207,-1278.33,0.00047123,120]
[387860853,1758931859216,-929.02,0.00047123,120]
[387860854,1758931859225,-480.0,0.00047123,120]
[387860855,1758931859234,-7070.83,0.00047123,120]
[387860856,1758931859243,-668.55,0.00047123,120]
[387860857,1758931859254,-2531.33,0.00047123,120]
[387860858,1758931859263,-1838.84,0.00047123,120]
[387860859,1758931859272,-2097.19,0.00047123,120]
[387860860,1758931859282,-1130.74,0.00047123,120]
[387860861,1758931859291,-1770.1,0.00047123,120]
[387860862,1758931859300,-966.58,0.00047123,120]
[387860863,1758931859310,-2553.64,0.00047123,120]
[387860864,1758931859319,-1080.52,0.00047123,120]
[387860865,1758931859328,-2115.12,0.00047123,120]
[387860866,1758931859338,-480.0,0.00047123,120]
[387860867,1758931859348,-480.0,0.00047123,120]
[387860868,1758931859357,-1498.56,0.00047123,120]
[387860869,1758931859368,-480.0,0.00047123,120]
[387860870,1758931859381,-489.37379206,0.00047123,120]
[387860871,1758931859391,-571.84445178,0.00047123,120]
[387860872,1758931859400,-480.0,0.00047123,120]
[387860873,1758931859414,-480.0,0.00047123,120]
[387860874,1758931859425,-480.0,0.00047123,120]
[387860875,1758931859435,-567.85191879,0.00047123,120]
[387860876,1758931859444,-2085.3,0.00047123,120]
[387860877,1758931859453,-480.0,0.00047123,120]
[387860878,1758931859462,-2256.75,0.00047123,120]
[387860879,1758931859472,-480.0,0.00047123,120]
[387860880,1758931859481,-480.0,0.00047123,120]
[387860881,1758931859490,-480.0,0.00047123,120]
[387860882,1758931859500,-501.05055665,0.00047123,120]
[387860883,1758931859509,-890.94,0.00047123,120]
[387860884,1758931859519,-884.22,0.00047123,120]
[387860885,1758931859528,-9281.75,0.00047123,120]
[387860886,1758931859538,-574.04,0.00047123,120]
[387860887,1758931859547,-1701.24,0.00047123,120]
[387860888,1758931859557,-480.0,0.00047123,120]
[387860889,1758931859565,-480.0,0.00047123,120]
[387860890,1758931859574,-546.43,0.00047123,120]
[387860891,1758931859584,-480.0,0.00047123,120]
[387860892,1758931859594,-1322.19,0.00047123,120]
[387860893,1758931859603,-822.45,0.00047123,120]
[387860894,1758931859612,-480.0,0.00047123,120]
[387860895,1758931859622,-6013.07,0.00047123,120]
[387860896,1758931859631,-2550.27,0.00047123,120]
[387860897,1758931859640,-219.1,0.0004714,120]
[387860898,1758931859649,-684.67,0.00047396,120]
[387860899,1758931859659,-1938.1,0.00047396,120]
[387860900,1758931859668,-480.0,0.00047396,120]
[387860901,1758931859677,-4350.71,0.00047396,120]
[387860902,1758931859687,-992.34,0.00047396,120]
[387860903,1758931859696,-179.55704663,0.00047397,120]
[387860904,1758931859705,-480.0,0.00047397,120]
[387860905,1758931859715,-480.0,0.00047397,120]
[387860906,1758931859724,-480.0,0.00047397,120]
[387860907,1758931859734,-499.45,0.00047397,120]
[387860908,1758931859745,-480.0,0.00047397,120]
[387860909,1758931859757,-606.53,0.00047397,120]
[387860910,1758931859766,-480.0,0.00047397,120]
[387860911,1758931859775,-480.0,0.00047397,120]
[387860912,1758931859784,-1099.68,0.00047397,120]
[387860913,1758931859793,-480.0,0.00047397,120]
[387860914,1758931859802,-480.0,0.00047397,120]
[387860915,1758931859811,-586.2566051,0.00047397,120]
[387860916,1758931859820,-1147.9,0.00047397,120]
[387860917,1758931859829,-1064.79,0.00047397,120]
[387860918,1758931859838,-747.18,0.00047397,120]
[387860919,1758931859848,-480.0,0.00047397,120]
[387860920,1758931859857,-480.0,0.00047397,120]
[387860921,1758931859866,-480.0,0.00047397,120]
[387860922,1758931859875,-493.21379974,0.00047397,120]
[387860923,1758931859885,-1462.51,0.00047397,120]
[387860924,1758931859894,-480.0,0.00047397,120]
[387860925,1758931859903,-512.33546742,0.00047397,120]
[387860926,1758931859913,-480.0,0.00047397,120]
[387860927,1758931859922,-641.87,0.00047397,120]
[387860928,1758931859931,-480.0,0.00047397,120]
[387860929,1758931859940,-480.0,0.00047397,120]
[387860930,1758931859950,-1214.82,0.00047397,120]
[387860931,1758931859960,-480.0,0.00047397,120]
[387860932,1758931859969,-480.0,0.00047397,120]
[387860933,1758931859978,-480.0,0.00047397,120]
[387860934,1758931859987,-466.04678267,0.00047397,120]
[387860935,1758931860046,-480.0,0.00047397,120]
[387860936,1758931860056,-523.68,0.00047397,120]
[387860937,1758931860066,-1047.97,0.00047397,120]
[387860938,1758931860076,-971.16,0.00047397,120]
[387860939,1758931860085,-480.0,0.00047397,120]
[387860940,1758931860094,-853.87,0.00047397,120]
[387860941,1758931860103,-480.0,0.00047397,120]
[387860942,1758931860112,-480.0,0.00047397,120]
[387860943,1758931860122,-499.66969265,0.00047397,120]
[387860944,1758931860131,-985.42,0.00047397,120]
[387860945,1758931860140,-1999.9,0.00047397,120]
[387860946,1758931860149,-480.0,0.00047397,120]
[387860947,1758931860159,-480.0,0.00047397,120]
[387860948,1758931860168,-480.0,0.00047397,120]
[387860949,1758931860178,-694.17,0.00047397,120]
[387860950,1758931860187,-1309.64,0.00047397,120]
[387860951,1758931860197,-480.0,0.00047397,120]
[387860952,1758931860206,-480.0,0.00047397,120]
[387860953,1758931860215,-480.0,0.00047397,120]
[387860954,1758931860224,-506.55,0.00047397,120]
[387860955,1758931860234,-1015.97,0.00047397,120]
[387860956,1758931860244,-275.56947507,0.00047397,120]
[387860957,1758931860252,-836.45,0.00047397,120]
[387860958,1758931860262,-801.6,0.00047397,120]
[387860959,1758931860271,-480.0,0.00047397,120]
[387860960,1758931860280,-480.0,0.00047397,120]
[387860961,1758931860290,-501.98,0.00047397,120]
[387860962,1758931860299,-572.34,0.00047397,120]
[387860963,1758931860309,-480.0,0.00047397,120]
[387860964,1758931860318,-247.91158439,0.00047397,120]
[387860965,1758931860328,-880.49,0.00047397,120]
[387860966,1758931860337,-480.0,0.00047397,120]
[387860967,1758931860346,-480.0,0.00047397,120]
[387860968,1758931860355,-480.0,0.00047397,120]
[387860969,1758931860364,-480.0,0.00047397,120]
[387860970,1758931860374,-480.0,0.00047397,120]
[387860971,1758931860384,-516.1,0.00047397,120]
[387860972,1758931860394,-765.11,0.00047397,120]
[387860973,1758931860403,-560.56,0.00047397,120]
[387860974,1758931860416,-480.0,0.00047397,120]
[387860975,1758931860426,-480.0,0.00047397,120]
[387860976,1758931860435,-480.0,0.00047397,120]
[387860977,1758931860444,-324.85193811,0.00047397,120]
[387860978,1758931860453,-768.16,0.00047397,120]
[387860979,1758931860463,-480.0,0.00047397,120]
[387860980,1758931860472,-480.0,0.00047397,120]
[387860981,1758931860483,-480.0,0.00047397,120]
[387860982,1758931860492,-480.0,0.00047397,120]
[387860983,1758931860502,-480.0,0.00047397,120]
[387860984,1758931860511,-533.64,0.00047397,120]
[387860985,1758931860520,-1366.15,0.00047397,120]
[387860986,1758931860530,-480.0,0.00047397,120]
[387860987,1758931860539,-480.0,0.00047397,120]
[387860988,1758931860549,-480.0,0.00047397,120]
[387860989,1758931860559,-1008.69,0.00047397,120]
[387860990,1758931860568,-480.0,0.00047397,120]
[387860991,1758931860578,-480.0,0.00047397,120]
[387860992,1758931860588,-545.16,0.00047397,120]
[387860993,1758931860597,-545.16,0.00047397,120]
[387860994,1758931860607,-252.07909891,0.00047397,120]
[387860995,1758931860616,-480.0,0.00047397,120]
[387860996,1758931860626,-480.0,0.00047397,120]
[387860997,1758931860635,-480.0,0.00047397,120]
[387860998,1758931860644,-480.0,0.00047397,120]
[387860999,1758931860654,-961.32,0.00047397,120]
[387861000,1758931860664,-529.38,0.00047397,120]
[387861001,1758931860673,-480.0,0.00047397,120]
[387861002,1758931860683,-480.0,0.00047397,120]
[387861003,1758931860692,-2103.06,0.00047397,120]
[387861004,1758931860702,-1138.42,0.00047397,120]
[387861005,1758931860711,-1891.6,0.00047397,120]
[387861006,1758931860721,-480.0,0.00047397,120]
[387861007,1758931860731,-1748.61,0.00047397,120]
[387861008,1758931860741,-480.0,0.00047397,120]
[387861009,1758931860751,-465.49956185,0.00047397,120]
[387861010,1758931860761,-480.0,0.00047397,120]
[387861011,1758931860771,-1014.65,0.00047397,120]
[387861012,1758931860781,-480.0,0.00047397,120]
[387861013,1758931860791,-690.89,0.00047397,120]
[387861014,1758931860800,-598.16,0.00047397,120]
[387861015,1758931860810,-480.0,0.00047397,120]
[387861016,1758931860819,-480.0,0.00047397,120]
[387861017,1758931860829,-480.0,0.00047397,120]
[387861018,1758931860839,-480.0,0.00047397,120]
[387861019,1758931860849,-483.95,0.00047397,120]
[387861020,1758931860858,-480.0,0.00047397,120]
[387861021,1758931860868,-1029.29,0.00047397,120]
[387861022,1758931860878,-480.0,0.00047397,120]
[387861023,1758931860887,-480.0,0.00047397,120]
[387861024,1758931860896,-480.0,0.00047397,120]
[387861025,1758931860906,-571.33,0.00047397,120]
[387861026,1758931860915,-480.0,0.00047397,120]
[387861027,1758931860925,-1772.96,0.00047397,120]
[387861028,1758931860934,-604.34,0.00047397,120]
[387861029,1758931860944,-346.25044658,0.00047397,120]
[387861030,1758931860953,-480.0,0.00047397,120]
[387861031,1758931860962,-170.14987926,0.00047397,120]
[387861032,1758931860972,-1382.47,0.00047397,120]
[387861033,1758931860981,-480.0,0.00047397,120]
[387861034,1758931860991,-1069.13,0.00047397,120]
[387861035,1758931861000,-480.0,0.00047397,120]
[387861036,1758931861010,-480.0,0.00047397,120]
[387861037,1758931861019,-212.62,0.00047397,120]
[387861038,1758931861028,-622.73,0.00047397,120]
[387861039,1758931861038,-480.0,0.00047397,120]
[387861040,1758931861047,-480.0,0.00047397,120]
[387861041,1758931861057,-865.78,0.00047397,120]
[387861042,1758931861066,-500.0,0.00047397,120]
[387861043,1758931861076,-480.0,0.00047397,120]
[387861044,1758931861086,-480.0,0.00047397,120]
[387861045,1758931861095,-480.0,0.00047397,120]
[387861046,1758931861105,-2497.39,0.00047397,120]
[387861047,1758931861114,-480.0,0.00047397,120]
[387861048,1758931861124,-480.0,0.00047397,120]
[387861049,1758931861133,-480.0,0.00047397,120]
[387861050,1758931861143,-480.0,0.00047397,120]
[387861051,1758931861152,-3990.68,0.00047397,120]
[387861052,1758931861162,-480.0,0.00047397,120]
[387861053,1758931861171,-480.0,0.00047397,120]
[387861054,1758931861181,-1497.79,0.00047397,120]
[387861055,1758931861190,-623.66,0.00047397,120]
[387861056,1758931861200,-480.0,0.00047397,120]
[387861057,1758931861210,-480.0,0.00047397,120]
[387861058,1758931861219,-480.0,0.00047397,120]
[387861059,1758931861229,-792.54,0.00047397,120]
[387861060,1758931861238,-480.0,0.00047397,120]
[387861061,1758931861248,-480.0,0.00047397,120]
[387861062,1758931861257,-480.0,0.00047397,120]
[387861063,1758931861267,-480.0,0.00047397,120]
[387861064,1758931861276,-480.0,0.00047397,120]
[387861065,1758931861286,-1571.66,0.00047397,120]
[387861066,1758931861295,-344.52788528,0.00047397,120]
[387861067,1758931861305,-1012.15,0.00047397,120]
[387861068,1758931861314,-480.0,0.00047397,120]
[387861069,1758931861324,-582.02,0.00047397,120]
[387861070,1758931861333,-480.0,0.00047397,120]
[387861071,1758931861343,-1420.95,0.00047397,120]
[387861072,1758931861352,-480.0,0.00047397,120]
[387861073,1758931861361,-1415.9,0.00047397,120]
[387861074,1758931861371,-571.53,0.00047397,120]
[387861075,1758931861380,-480.0,0.00047397,120]
[387861076,1758931861389,-480.0,0.00047397,120]
[387861077,1758931861398,-480.0,0.00047397,120]
[387861078,1758931861409,-661.82,0.00047397,120]
[387861079,1758931861421,-711.54,0.00047397,120]
[387861080,1758931861430,-575.78372044,0.00047397,120]
[387861081,1758931861440,-608.9,0.00047397,120]
[387861082,1758931861449,-1357.32,0.00047397,120]
[387861083,1758931861459,-3543.12,0.00047397,120]
[387861084,1758931861468,-480.0,0.00047397,120]
[387861085,1758931861477,-1098.48,0.00047397,120]
[387861086,1758931861487,-500.0,0.00047397,14]
[387861087,1758931861496,-480.0,0.00047397,120]
[387861088,1758931861505,-480.0,0.00047397,120]
[387861089,1758931861515,-480.0,0.00047397,120]
[387861090,1758931861524,-1097.02,0.00047397,120]
[387861091,1758931861534,-480.0,0.00047397,120]
[387861092,1758931861543,-807.05,0.00047397,120]
[387861093,1758931861552,-480.0,0.00047397,120]
[387861094,1758931861562,-480.0,0.00047397,120]
[387861095,1758931861571,-480.0,0.00047397,120]
[387861096,1758931861581,-1081.54,0.00047397,120]
[387861097,1758931861590,-202.95978011,0.00047397,120]
[387861098,1758931861600,-480.0,0.00047397,120]
[387861099,1758931861610,-1061.5435138,0.00047397,120]
[387861100,1758931861619,-480.0,0.00047397,120]
[387861101,1758931861628,-9971.98,0.00047397,120]
[387861102,1758931861638,-480.0,0.00047397,120]
[387861103,1758931861648,-649.55,0.00047397,120]
[387861104,1758931861658,-4462.38,0.00047397,3]
[387861105,1758931861667,-10430.65,0.00047397,120]
[387861106,1758931861677,-480.0,0.00047397,120]
[387861107,1758931861686,-2702.06,0.00047397,120]
[387861108,1758931861696,-480.0,0.00047397,120]
[387861109,1758931861705,-480.0,0.00047397,120]
[387861110,1758931861715,-481.66618297,0.00047397,120]
[387861111,1758931861725,-480.0,0.00047397,120]
[387861112,1758931861734,-500.03127799,0.00047397,120]
[387861113,1758931861743,-480.0,0.00047397,120]
[387861114,1758931861752,-480.0,0.00047397,120]
[387861115,1758931861762,-2055.04,0.00047397,120]
[387861116,1758931861772,-3405.64,0.00047397,120]
[387861117,1758931861782,-480.0,0.00047397,120]
[387861118,1758931861791,-524.82,0.00047397,120]
[387861119,1758931861801,-755.1,0.00047397,120]
[387861120,1758931861811,-642.28,0.00047397,120]
[387861121,1758931861820,-4483.5,0.00047397,120]
[387861122,1758931861829,-772.16,0.00047397,30]
[387861123,1758931861839,-480.0,0.00047397,120]
[387861124,1758931861848,-760.25,0.00047397,120]
[387861125,1758931861858,-2365.79,0.00047397,120]
[387861126,1758931861867,-480.0,0.00047397,120]
[387861127,1758931861877,-811.62,0.00047397,120]
[387861128,1758931861887,-576.88,0.00047397,120]
[387861129,1758931861896,-679.43,0.00047397,120]
[387861130,1758931861906,-480.0,0.00047397,120]
[387861131,1758931861915,-811.86,0.00047397,120]
[387861132,1758931861926,-480.0,0.00047397,120]
[387861133,1758931861935,-3497.99,0.00047397,120]
[387861134,1758931861945,-546.05,0.00047397,120]
[387861135,1758931861954,-480.0,0.00047397,120]
[387861136,1758931861964,-480.0,0.00047397,120]
[387861137,1758931861973,-480.0,0.00047397,120]
[387861138,1758931861983,-480.0,0.00047397,120]
[387861139,1758931861992,-480.0,0.00047397,120]
[387861140,1758931862002,-2492.31,0.00047397,120]
[387861141,1758931862012,-480.0,0.00047397,120]
[387861142,1758931862020,-981.92,0.00047397,120]
[387861143,1758931862030,-858.58,0.00047397,120]
[387861144,1758931862039,-480.0,0.00047397,120]
[387861145,1758931862049,-480.0,0.00047397,120]
[387861146,1758931862059,-536.78,0.00047397,120]
[387861147,1758931862068,-1743.2,0.00047397,120]
[387861148,1758931862077,-480.0,0.00047397,120]
[387861149,1758931862086,-480.0,0.00047397,120]
[387861150,1758931862095,-4717.61,0.00047397,120]
[387861151,1758931862104,-480.0,0.00047397,120]
[387861152,1758931862113,-480.0,0.00047397,120]
[387861153,1758931862122,-502.61488666,0.00047397,120]
[387861154,1758931862131,-853.28,0.00047397,120]
[387861155,1758931862140,-480.0,0.00047397,120]
[387861156,1758931862149,-767.4,0.00047397,120]
[387861157,1758931862159,-842.14,0.00047397,120]
[387861158,1758931862168,-2623.9,0.00047397,30]
[387861159,1758931862180,-1203.55,0.00047397,120]
[387861160,1758931862189,-18460.88,0.00047397,120]
[387861161,1758931862199,-1092.42,0.00047397,120]
[387861162,1758931862209,-596.68,0.00047397,120]
[387861163,1758931862219,-5129.78,0.00047397,120]
[387861164,1758931862228,-869.5,0.00047397,120]
[387861165,1758931862239,-557.48,0.00047397,120]
[387861166,1758931862248,-750.93,0.00047397,120]
[387861167,1758931862258,-480.0,0.00047397,120]
[387861168,1758931862267,-480.0,0.00047397,120]
[387861169,1758931862276,-1759.3,0.00047397,120]
[387861170,1758931862285,-503.94,0.00047397,120]
[387861171,1758931862294,-942.05,0.00047397,120]
[387861172,1758931862303,-9594.99,0.00047397,120]
[387861173,1758931862312,-1400.99,0.00047397,120]
[387861174,1758931862321,-480.0,0.00047397,120]
[387861175,1758931862330,-988.16,0.00047397,120]
[387861176,1758931862339,-1293.22,0.00047397,120]
[387861177,1758931862348,-480.0,0.00047397,120]
[387861178,1758931862357,-512.41,0.00047397,120]
[387861179,1758931862366,-1484.46,0.00047397,120]
[387861180,1758931862375,-480.0,0.00047397,120]
[387861181,1758931862384,-1648.98,0.00047397,120]
[387861182,1758931862393,-480.0,0.00047397,120]
[387861183,1758931862402,-1870.12,0.00047397,120]
[387861184,1758931862411,-480.0,0.00047397,120]
[387861185,1758931862425,-1799.49,0.00047397,120]
[387861186,1758931862435,-480.0,0.00047397,120]
[387861187,1758931862444,-2180.83,0.00047397,21]
[387861188,1758931862453,-1278.33,0.00047397,120]
[387861189,1758931862462,-929.02,0.00047397,120]
[387861190,1758931862472,-599.30949763,0.00047397,120]
[387861191,1758931862481,-668.55,0.00047397,120]
[387861192,1758931862490,-7070.83,0.00047397,120]
[387861193,1758931862499,-2531.33,0.00047397,120]
[387861194,1758931862509,-1838.84,0.00047397,120]
[387861195,1758931862519,-2097.19,0.00047397,120]
[387861196,1758931862529,-1130.74,0.00047397,120]
[387861197,1758931862539,-1770.1,0.00047397,120]
[387861198,1758931862548,-966.58,0.00047397,120]
[387861199,1758931862558,-2553.64,0.00047397,120]
[387861200,1758931862567,-1080.52,0.00047397,120]
[387861201,1758931862576,-2115.12,0.00047397,120]
[387861202,1758931862586,-480.0,0.00047397,120]
[387861203,1758931862595,-480.0,0.00047397,120]
[387861204,1758931862604,-1498.56,0.00047397,120]
[387861205,1758931862613,-371.53411341,0.00047397,120]
[387861206,1758931862622,-480.0,0.00047397,120]
[387861207,1758931862632,-480.0,0.00047397,120]
[387861208,1758931862641,-480.0,0.00047397,120]
[387861209,1758931862649,-2085.3,0.00047397,120]
[387861210,1758931862657,-480.0,0.00047397,120]
[387861211,1758931862667,-2256.75,0.00047397,120]
[387861212,1758931862676,-480.0,0.00047397,120]
[387861213,1758931862685,-480.0,0.00047397,120]
[387861214,1758931862695,-480.0,0.00047397,120]
[387861215,1758931862704,-890.94,0.00047397,120]
[387861216,1758931862713,-884.22,0.00047397,120]
[387861217,1758931862722,-9281.75,0.00047397,120]
[387861218,1758931862731,-574.04,0.00047397,120]
[387861219,1758931862740,-1701.24,0.00047397,120]
[387861220,1758931862749,-393.88796095,0.00047397,120]
[387861221,1758931862759,-480.0,0.00047397,120]
[387861222,1758931862768,-546.43,0.00047397,120]
[387861223,1758931862777,-480.0,0.00047397,120]
[387861224,1758931862788,-1322.19,0.00047397,120]
[387861225,1758931862797,-822.45,0.00047397,120]
[387861226,1758931862806,-480.0,0.00047397,120]
[387861227,1758931862815,-2550.27,0.00047397,120]
[387861228,1758931862824,-6013.07,0.00047397,120]
[387861229,1758931862833,-684.67,0.0004767,120]
[387861230,1758931862843,-1938.1,0.0004767,120]
[387861231,1758931862853,-480.0,0.0004767,120]
[387861232,1758931862862,-250.0,0.0004767,120]
[387861233,1758931862872,-17300.0,0.0004767,120]
[387861234,1758931862881,-250.0,0.0004767,120]
[387861235,1758931862891,-2597.22545671,0.0004767,120]
[387861236,1758931862900,-500.0,0.0004767,120]
[387861237,1758931862909,-250.0,0.0004767,120]
[387861238,1758931862919,-500.0,0.0004767,120]
[387861239,1758931862931,-250.0,0.0004767,120]
[387861240,1758931862941,-500.0,0.0004767,120]
[387861241,1758931862950,-250.0,0.0004767,120]
[387861242,1758931862959,-250.0,0.0004767,120]
[387861243,1758931862975,-500.0,0.0004767,120]
[387861244,1758931862993,-250.0,0.0004767,120]
[387861245,1758931863010,-250.0,0.0004767,120]
[387861246,1758931863020,-500.0,0.0004767,120]
[387861247,1758931863030,-250.0,0.0004767,120]
[387861248,1758931863040,-250.0,0.0004767,120]
[387861249,1758931863050,-500.0,0.0004767,120]
[387861250,1758931863059,-250.0,0.0004767,120]
[387861251,1758931863069,-250.0,0.0004767,120]
[387861252,1758931863079,-500.0,0.0004767,120]
[387861253,1758931863115,-250.0,0.0004767,120]
[387861254,1758931863126,-250.0,0.0004767,120]
[387861255,1758931863136,-500.0,0.0004767,120]
[387861256,1758931863146,-275.73542017,0.0004767,120]
[387861257,1758931863155,-250.0,0.0004767,120]
[387861258,1758931863166,-500.0,0.0004767,120]
[387861259,1758931863177,-250.0,0.0004767,120]
[387861260,1758931863187,-500.0,0.0004767,120]
[387861261,1758931863197,-500.0,0.0004767,120]
[387861262,1758931863207,-500.0,0.0004767,120]
[387861263,1758931863217,-500.0,0.0004767,120]
[387861264,1758931863226,-500.0,0.0004767,120]
[387861265,1758931863236,-500.0,0.0004767,120]